Cogmind - Beta 13 @@@ ROGUE MODE // 2024.06.01 @ 19:05:37 Player: Pepsi Result: Destroyed by G-34 Mercenary with Small Laser Performance ------------- Evolutions (1) 500 Regions Visited (2) 400 Robots Destroyed (21) 105 Value Destroyed (676) 676 Prototype IDs (0) 0 Alien Tech Used (0) 0 Bonus (0) 0 TOTAL SCORE: 1681 Bonus ------- None Cogmind --------- Core Integrity 0/400 Matter 224/300 Energy 100/100 System Corruption 0% Temperature Cool (6) Movement Core (100) Ox1 Location -9/Materials Parts ------- > --- POWER (1) -------- (None) > --- PROPULSION (2) --- (None) > --- UTILITY (4) ------ Heat Sink Small Storage Unit Visual Processing Unit Salvage Targeting Computer > --- WEAPON (2) ------- (None) > --- INVENTORY (8) ---- Aluminum Leg Medium Matter Pod (69) Signal Interpreter Peak State ------------ > --- POWER ------------ Light Nuclear Core > --- PROPULSION ------- Aluminum Leg Improved Aluminum Leg > --- UTILITY ---------- Heat Sink Small Storage Unit Visual Processing Unit Salvage Targeting Computer > --- WEAPON ----------- Medium Laser Particle Gun > --- INVENTORY -------- Ion Engine Aluminum Leg Aluminum Leg Medium Matter Pod Spread Laser Assault Rifle Assault Rifle Grenade Launcher [Rating: 15] Favorites ----------- Power Light Nuclear Core Engine Light Ion Engine Power Core Light Nuclear Core Propulsion Aluminum Leg Leg Aluminum Leg Utility Small Storage Unit Device Heat Sink Storage Small Storage Unit Processor Visual Processing Unit Weapon Assault Rifle Energy Gun Particle Gun Ballistic Gun Assault Rifle Launcher Grenade Launcher Build | -11 -10 -9 ------- Run | Yrd Mat Mat Slots Evolved 2 | . . 2 Power . | . . . Propulsion . | . . . Utility 2 | . . 2 Weapon . | . . . Parts Attached 26 | 6 5 15 Power 3 | 1 1 1 Engine 2 | 1 . 1 Core 1 | . 1 . Reactor . | . . . Propulsion 7 | 2 1 4 Treads . | . . . Leg 7 | 2 1 4 Wheel . | . . . Hover . | . . . Flight . | . . . Utility 4 | 1 1 2 Device 1 | . 1 . Storage 1 | 1 . . Processor 2 | . . 2 Hackware . | . . . Protection . | . . . Artifact . | . . . Weapon 12 | 2 2 8 Energy Gun 4 | . 2 2 Energy Cannon . | . . . Ballistic Gun 4 | 2 . 2 Ballistic Cannon . | . . . Launcher 4 | . . 4 Special Weapon . | . . . Impact Weapon . | . . . Slashing Weapon . | . . . Piercing Weapon . | . . . Special Melee Weapon . | . . . Unidentified Prototypes . | . . . Parts Lost 15 | . 2 13 Power 3 | . 1 2 Propulsion 4 | . . 4 Utility . | . . . Weapon 8 | . 1 7 Highest Loss Streak 6 | . 1 6 To Critical Strikes . | . . . Average Slot Usage (%) 90 | . 96 84 Engine 1 | . 2 . Core 8 | . 11 5 Leg 21 | . 28 17 Device 11 | . 11 11 Storage 12 | . 14 11 Processor 11 | . . 19 Energy Gun 14 | . 16 12 Ballistic Gun 7 | . 11 4 Launcher 1 | . . 2 Naked Turns . | . . . Heaviest Build 16 | 12 16 16 Greatest Support 23 | 20 20 23 Greatest Overweight (x) 3 | . . 3 Average Overweight (x) . | . . . Largest Inventory Capacity 8 | 8 8 8 Average Capacity 7 | 6 8 8 Most Carried 8 | 5 8 8 Average Carried 5 | 3 6 5 Final Capacity 8 | 8 8 8 Final Carried 7 | 4 7 3 Class Distribution -------------------- 65% | Mutant 34% | Scavenger-Mutant Dominant Class ---------------- Mutant | -10/Materials Mutant | -9/Materials Resources | -11 -10 -9 ----------- Run | Yrd Mat Mat Matter Collected 690 | 196 174 320 Remotely . | . . . Salvage Created 625 | . 189 436 Parts 30 | . 15 15 Haulers Intercepted 1 | . . 1 Recyclers Shooed . | . . . Parts Field Recycled . | . . . Retrieved Matter . | . . . Parts Self-Destructed . | . . . Prevented . | . . . Kills | -11 -10 -9 ------- Run | Yrd Mat Mat Combat Hostiles Destroyed 17 | . 6 11 Guns 13 | . 6 7 AOE 4 | . . 4 Classes Destroyed 7 | . 4 3 Builder 1 | . 1 . Hauler 1 | . . 1 Operator 1 | . . 1 Watcher 1 | . 1 . Swarmer 3 | . 3 . Grunt 9 | . 3 6 Sentry 5 | . . 5 Best Kill Streak 3 | . 3 3 Combat Bots Only 3 | . 3 3 Max Kills in Single Turn 2 | . 2 2 Gunslinging 1 | . 1 . Exploded 1 | . . 1 Melee . | . . . Uniques/NPCs Destroyed . | . . . Combat | -11 -10 -9 -------- Run | Yrd Mat Mat Hostile Shots Fired 206 | . 61 145 Missed 61 | . 15 46 Damage Taken 1883 | . 446 1437 Core 482 | . 73 409 Absorbed by Shields . | . . . Core Remaining (%) 85 | 100 70 . Volleys Fired 77 | . 26 51 Largest 2 | . 2 2 Hottest 115 | . 115 115 Shots Fired 126 | . 51 75 Gun 115 | . 51 64 Cannon . | . . . Launcher 11 | . . 11 Special . | . . . Kinetic 63 | . 31 32 Thermal 52 | . 20 32 Explosive 11 | . . 11 Electromagnetic . | . . . Robot Hit Streak 11 | . 6 11 Robot Miss Streak 3 | . 3 3 Penetration Max . | . . . Secondary Targets 4 | . 3 1 Max Gunslinging Chain 1 | . 1 1 Shots Hit Robots 78 | . 28 50 Core Hits 41 | . 11 30 Critical Kills . | . . . Critical Parts Destroyed 1 | . 1 . Critical Strikes 1 | . 1 . Destroy 1 | . 1 . Melee Attacks . | . . . Impact . | . . . Slashing . | . . . Piercing . | . . . Sneak Attacks . | . . . Combat Hostiles . | . . . Follow-up Attacks . | . . . Damage Inflicted 1688 | . 418 1270 Guns 1010 | . 418 592 Cannons . | . . . Explosions 678 | . . 678 Melee . | . . . Ramming . | . . . Kinetic 475 | . 214 261 Thermal 736 | . 204 532 Explosive 477 | . . 477 Electromagnetic . | . . . Impact . | . . . Slashing . | . . . Piercing . | . . . Highest Corruption 2 | . 2 . Average Corruption 2 | . 2 . Corruption Purged . | . . . Corruption Blocked . | . . . Effects 7 | . 7 . Message Errors 3 | . 3 . Matter Fused 2 | . 2 . Energy Discharges 1 | . 1 . Weapon Failures 1 | . 1 . Overload Shots . | . . . Overflow Damage 5 | . . 5 Projectiles . | . . . Explosions 5 | . . 5 Melee . | . . . Knockbacks . | . . . Impact . | . . . Kinetic . | . . . Secondary . | . . . Self-Inflicted Damage 150 | . . 150 Shots 2 | . . 2 Rammed . | . . . Targets Rammed . | . . . Kicked . | . . . Crushed . | . . . Highest Temperature 112 | . 60 112 Average Temperature 35 | . 14 49 Received Heat Transfer 696 | . 126 570 Siege Activations . | . . . Robots Corrupted . | . . . Combat Hostiles . | . . . Parts Fried . | . . . Impact Corruptions . | . . . Robots Melted . | . . . Combat Hostiles . | . . . Parts Melted 3 | . 2 1 Heat Transferred 1357 | . 518 839 Parts Sabotaged . | . . . Parts Stolen . | . . . Parts Stripped . | . . . Power Chain Reactions . | . . . Alert | -11 -10 -9 ------- Run | Yrd Mat Mat Peak Influence 376 | . 81 376 Initial 15 | . . 15 Average 66 | . 20 108 Maximum Alert Level 1 | . . 1 Low Security (%) 93 | 100 100 88 Level 1 6 | . . 11 Level 2 . | . . . Level 3 . | . . . Level 4 . | . . . Level 5 . | . . . High Security . | . . . Max Security . | . . . Squads Dispatched 1 | . . 1 Investigation . | . . . Extermination . | . . . Reinforcement 1 | . . 1 Assault . | . . . Garrison . | . . . Intercept . | . . . Searches Triggered . | . . . Construction Impeded . | . . . Haulers Reinforced . | . . . Active Scanning Responses . | . . . Cargo Convoy Interrupts . | . . . Stealth | -11 -10 -9 --------- Run | Yrd Mat Mat Distress Signals 2 | . 2 . Communications Jammed . | . . . Distress Signals . | . . . Times Spotted 32 | . 12 20 Peak Tracking Total 5 | . 5 3 Tactical Retreats 1 | . . 1 Traps | -11 -10 -9 ------- Run | Yrd Mat Mat Traps Triggered 1 | . 1 . Indirectly . | . . . Trap Hack Attempts . | . . . Triggered . | . . . Disarmed . | . . . Reprogrammed . | . . . Reused . | . . . Traps Extracted . | . . . Installed . | . . . Triggered . | . . . Machines | -11 -10 -9 ---------- Run | Yrd Mat Mat Machines Disabled 5 | . . 5 Max in Single Turn 2 | . . 2 Machines Repaired . | . . . Machines Dismantled . | . . . Machines Sabotaged . | . . . Overloaded Fab Kills . | . . . Hacking | -11 -10 -9 --------- Run | Yrd Mat Mat Machines Accessed 3 | . 2 1 Terminals 2 | . 1 1 Fabricators . | . . . Repair Stations . | . . . Recycling Units 1 | . 1 . Scanalyzers . | . . . Garrison Access . | . . . Total Hacks 3 | . 2 1 Successful 2 | . 2 . Failed 1 | . . 1 Catastrophic . | . . . Database Lockouts . | . . . Manual . | . . . Terminals 2 | . 1 1 Fabricators . | . . . Repair Stations . | . . . Recycling Units 1 | . 1 . Scanalyzers . | . . . Garrison Access . | . . . Terminal Hacks 1 | . 1 . Unreport Threat 1 | . 1 . Fabricator Hacks . | . . . Repair Station Hacks . | . . . Recycling Unit Hacks 1 | . 1 . Retrieve Components 1 | . 1 . Scanalyzer . | . . . Garrison Access Hacks . | . . . Unauthorized Hacks . | . . . Terminals . | . . . Fabricators . | . . . Repair Stations . | . . . Recycling Units . | . . . Scanalyzers . | . . . Garrison Access . | . . . Data Cores Recovered . | . . . Used . | . . . Hacking Detections 2 | . 1 1 Full Trace Events . | . . . Feedback Events . | . . . Feedback Blocked . | . . . Robot Schematics Acquired . | . . . Robots Built . | . . . Authchips . | . . . Time . | . . . Total Robot Build Rating . | . . . Part Schematics Acquired . | . . . Parts Built . | . . . Authchips . | . . . Time . | . . . Total Part Build Rating . | . . . Parts Repaired . | . . . Time . | . . . Parts Recycled . | . . . Recycled Matter . | . . . Retrieved Matter . | . . . Retrieved Components 3 | . 3 . Parts Scanalyzed . | . . . Part Schematics Acquired . | . . . Parts Damaged . | . . . Bothacking | -11 -10 -9 ------------ Run | Yrd Mat Mat Used RIF Installer . | . . . Robots Hacked . | . . . Non-combat . | . . . Combat . | . . . Robot Hacks Applied . | . . . Relay Couplers Released . | . . . Fabnet Peak Effective % . | . . . Robots Rewired . | . . . Allies Hacked . | . . . Hacks Repelled . | . . . Allies | -11 -10 -9 -------- Run | Yrd Mat Mat Total Allies . | . . . Largest Group . | . . . Highest-Rated Group . | . . . Highest-Rated Ally . | . . . Total Orders . | . . . Ally Attacks . | . . . Total Damage . | . . . Kills . | . . . Allies Corrupted . | . . . Allies Melted . | . . . Intel | -11 -10 -9 ------- Run | Yrd Mat Mat Robot Analysis Total . | . . . Derelict Logs Recovered . | . . . Drone Launches . | . . . Drone Recoveries . | . . . Exploration | -11 -10 -9 ------------- Run | Yrd Mat Mat Turns Passed 1432 | 82 580 770 Spaces Moved 994 | 77 408 509 Core 110 | 34 . 76 Treads . | . . . Legs 884 | 43 408 433 Wheels . | . . . Hover . | . . . Flight . | . . . Fastest Speed 50 | 50 120 100 Average Speed 118 | 89 120 122 Slowest Speed 200 | 120 120 200 Overloaded Moves . | . . . Propulsion Burnouts . | . . . Robots Hopped . | . . . Cave-ins Triggered . | . . . Exploration Rate (%) 25 | 4 41 32 Regions Visited 2 Branch Regions . Pre-discovered Areas . | . . . Known Exits Taken . | . . . Unknown Exits Taken 2 | 1 1 . Scrap Searched . | . . . Spaces Dug . | . . . Terrain Destroyed 120 | . . 120 Melee . | . . . Projectile . | . . . AOE 120 | . . 120 Terrain Rammed . | . . . Walls Destroyed . | . . . Machines Disabled . | . . . Actions | -11 -10 -9 --------- Run | Yrd Mat Mat Total 1113 | 88 445 580 Wait . | . . . Move 992 | 76 407 509 Hop . | . . . Pick Up 13 | 6 5 2 Fast Attach 10 | 4 2 4 Attach 10 | 2 1 7 Detach 1 | . . 1 Swap 6 | . 2 4 Drop 4 | . 2 2 Fire 77 | . 26 51 Melee . | . . . Ram . | . . . Kick . | . . . Crush . | . . . Escape Stasis . | . . . Rewire . | . . . Trap . | . . . Miscellaneous . | . . . Route ------- -11/Scrapyard -10/Materials (discovered 2 exits: *Mat x2) -9/Materials History --------- Turn | Location | Event 20 | -11/Scrapyard | Discovered new exit (range 16) 83 | -11/Scrapyard | Entered Materials 310 | -10/Materials | Build established: Mutant 497 | -10/Materials | Discovered new exit (range 3) 644 | -10/Materials | Discovered new exit (range 16) 663 | -10/Materials | Entered another Materials area 663 | -9/Materials | Evolved 2 slots: Utility x2 695 | -9/Materials | Build established: Scavenger-Mutant 1145 | -9/Materials | Lost 6 parts (2p2n2w) 1152 | -9/Materials | Core integrity fell below 50% 1224 | -9/Materials | Build established: Mutant 1351 | -9/Materials | Core integrity fell below 20% 1406 | -9/Materials | Lost 3 parts (2n1w) 1433 | -9/Materials | Destroyed by G-34 Mercenary with Small Laser Last Messages --------------- 01371_ G-34 Mercenary unfolds itself. 01373_ R-06 Scavenger collects Lgt. Treads. 01375_ Aluminum Leg destroyed. 01377_ Y-45 Defender destroyed. 01379_ Acquired 26 matter. 01384_ U-05 Engineer lays Concrete. 01397_ U-05 Engineer builds a Wall. 01397_ Acquired 22 matter. 01401_ The unstable cave ceiling collapses. 01401_ K-01 Serf collects debris. 01401_ U-05 Engineer builds a Door. 01404_ K-01 Serf collects debris. 01405_ U-05 Engineer builds a Wall. 01407_ K-01 Serf collects debris. 01410_ U-05 Engineer lays Concrete. 01411_ K-01 Serf collects debris. 01412_ U-05 Engineer lays Concrete. 01413_ U-05 Engineer builds a Wall. 01413_ Assault Rifle destroyed. 01414_ K-01 Serf collects debris. Map ----- +----------------------------------------------------+ | ????????????????# ?# """ #??# # # | | ????????????????+ ?# "R" !![ =#??# # + | | ????????????????# ?# " " ![[ #??# # # | | ????????????????# ?# ![[ #?## ######## | | ??????########### ?# ### ####### | | ?????? ? "# | | ?????? ???##"""""""""## | | ???????? ???#" " | | ??????????#^ #### " "####### | | ??????????# == # # # ""#????? | | ??????????# == # #????? | | ??????????+ == / #????? | | ??????????# # #????? | | ??????????# #????? | | ??????????###### ###""" #????? | | ???????????????# #?# " #????? | | ???????????????# #?###"""""" "" #????? | | ???????????????# #???# ##""" #????? | | ??????????????## ############# " #????? | | ??????????????# #"""""""""###????? | | ??????????????# # ##??????? | | ??????????????# g # """" #???????? | | ????????????########## + """" #???????? | | ????????????? #b "T" # """" #???????? | | ?????????????? """"" # """ # ?? #???????? | | ?????????????? """"" + @ # ??"" #???????? | | ?????????????? """"" # #????" ????????? | | ????????????? + #### #????" !????????? | | ????????????########?# #??? #???? ????????? | | ?????????????????????##+##???? #????####????????? | | ??????????????????????????????? #????????????????? | | ????????????????????????????????#????????????????? | | ?????????????????????????????????????????????????? | | ?????????????????????????????????????????????????? | | ?????????????????????????????????????????????????? | | ?????????????????????????????????????????????????? | | ?????????????????????????????????????????????????? | | ?????????????????????????????????????????????????? | | ?????????????????????????????????????????????????? | | ?????????????????????????????????????????????????? | | | | | | | | | | | | | | | | | | | | | +----------------------------------------------------+ Best States ------------- Heat Dissipation 38 Energy Generation 14 Energy Capacity 250 Matter Stores 300 Matter Capacity 300 Sight Range 18 Terrain Scan Density 10 Evasion (%) 55 Salvage Targeting 1 Item Schematics ----------------- None Robot Schematics ------------------ None Fabricated ------------ Nothing Alien Tech Used ----------------- None Achievements -------------- None Challenges ------------ None Game ------ Seed StormAssaultLink Manual? 0 Play Time 00:16:49 Cumulative 5.0 hours Start 2024.05.20 @ 21:26:50 End 2024.06.01 @ 19:05:37 Sessions 4 Manual Loads 0 Difficulty Rogue Special Mode None Game No. 11 Rogue 11 Adventurer 0 Explorer 0 Win Type - Total 0 Types 0/0/0/0/0/0/0/0/0 Lore% 10 Gallery% 9 Achievement% 10 Wizard Run 0 Options --------- Layout 2 ASCII 0 Keyboard 1 Movement Vi Keybinds 0 Fullscreen 1 Font 16/TamsynBold Map View 50x49 Zoom Use 0% Tactical HUD 1 Map Filters NONE Filters NONE Steam SD RUN: 8dc0bcc2-7039-4105-8baf-6cfef3eab801